bitfinex-derivatives/quotes_BTCF0:USTF0_20250514
["timestamp","ask_amount","ask_price","bid_price","bid_amount"]
[1747202430046,0.002,103940.0,103930.0,2.69790897]
[1747202431947,0.002,103940.0,103930.0,2.89362252]
[1747202432548,0.3823169,103950.0,103940.0,0.1924283]
[1747202432849,0.3823169,103950.0,103940.0,0.76757573]
[1747202433146,0.3823169,103950.0,103940.0,0.8637897]
[1747202433646,0.3342139,103950.0,103940.0,0.8637897]
[1747202433857,0.3352139,103950.0,103940.0,0.8697897]
[1747202434036,0.2871114,103950.0,103940.0,0.8697897]
[1747202434644,0.2871114,103950.0,103940.0,0.8667897]
[1747202434848,0.001,103950.0,103940.0,0.98233713]
[1747202435044,0.002,103950.0,103940.0,0.8637897]
[1747202435244,0.002,103950.0,103940.0,1.0257897]
[1747202435549,0.002,103950.0,103940.0,2.5257897]
[1747202436245,0.001,103950.0,103940.0,2.5257897]
[1747202436446,0.5738402,103960.0,103950.0,0.1924098]
[1747202436749,0.5738402,103960.0,103950.0,0.76685723]
[1747202437151,0.5738402,103960.0,103950.0,0.86306195]
[1747202438448,0.33335,103960.0,103950.0,0.86306195]
[1747202438649,0.23715,103960.0,103950.0,0.98160938]
[1747202439349,0.4295413,103960.0,103950.0,0.98160938]
[1747202439553,0.4598413,103960.0,103950.0,0.98160938]
[1747202440555,0.2535213,103960.0,103950.0,0.98160938]
[1747202441153,0.2844213,103960.0,103950.0,2.36306195]
[1747202442554,0.10645,103960.0,103950.0,2.36306195]
[1747202442756,0.2988413,103960.0,103950.0,2.24451452]
[1747202442942,0.3290413,103960.0,103950.0,2.36306195]
[1747202443343,0.3290413,103960.0,103950.0,2.5094816]
[1747202443656,0.3290413,103960.0,103950.0,2.4776816]
[1747202444251,0.3290413,103960.0,103950.0,2.32653417]
[1747202445057,0.3290413,103960.0,103950.0,2.4769816]
[1747202446155,0.3310413,103960.0,103950.0,2.4779816]
[1747202446352,0.3330413,103960.0,103950.0,2.4779816]
[1747202446854,0.3330413,103960.0,103950.0,2.35943417]
[1747202447051,0.3330413,103960.0,103950.0,2.4779816]
[1747202447657,0.3022113,103960.0,103950.0,2.4779816]
[1747202449046,0.3022113,103960.0,103950.0,2.35943417]
[1747202449251,0.3022113,103960.0,103950.0,2.4779816]
[1747202451453,0.3022113,103960.0,103950.0,2.4460816]
[1747202451954,0.3022113,103960.0,103950.0,2.32753417]
[1747202452159,0.3022113,103960.0,103950.0,2.4460816]
[1747202455358,0.3022113,103960.0,103950.0,2.40531766]
[1747202458753,0.3022113,103960.0,103950.0,2.43751766]
[1747202458964,0.3022113,103960.0,103950.0,2.63323121]
[1747202464864,0.07962,103960.0,103950.0,2.7110147]
[1747202465166,0.07962,103960.0,103950.0,2.9034147]
[1747202466066,0.2680113,103960.0,103950.0,2.82463121]
[1747202466367,0.2690113,103960.0,103950.0,2.66263121]
[1747202467257,0.2690113,103960.0,103950.0,3.13382239]
[1747202467869,0.07662,103960.0,103950.0,3.13382239]
[1747202468870,0.10745,103960.0,103950.0,3.13382239]
[1747202469967,0.04625,103960.0,103950.0,3.21160588]
[1747202470262,0.2404601,103980.0,103970.0,0.1923727]
[1747202470575,0.3359601,103980.0,103970.0,0.63095619]
[1747202470871,0.3359601,103980.0,103970.0,0.75875165]
[1747202471573,0.3379601,103980.0,103970.0,0.75875165]
[1747202471773,0.3379601,103980.0,103970.0,2.25875165]
[1747202472177,0.2898697,103980.0,103970.0,2.25875165]
[1747202472378,0.2271542,103980.0,103970.0,2.32365165]
[1747202472770,0.0368,103980.0,103970.0,2.47046799]
[1747202473176,0.2291542,103980.0,103970.0,2.47046799]
[1747202473376,0.2618542,103980.0,103970.0,2.47046799]
[1747202474271,0.0695,103980.0,103970.0,2.54825148]
[1747202474468,0.0348,103980.0,103970.0,2.47046799]
[1747202474677,0.0358,103980.0,103970.0,2.47046799]
[1747202474881,0.0338,103980.0,103970.0,2.47046799]
[1747202475284,0.0338,103980.0,103970.0,2.3926845]
[1747202475580,0.2261542,103980.0,103970.0,2.47046799]
[1747202475783,0.2889542,103980.0,103970.0,2.47046799]
[1747202476682,0.2889542,103980.0,103970.0,0.97046799]
[1747202477279,0.2889542,103980.0,103970.0,2.47046799]
[1747202485475,0.0966,103980.0,103970.0,2.47046799]
[1747202485685,0.2889542,103980.0,103970.0,2.47046799]
[1747202485885,0.2889542,103980.0,103970.0,2.3926845]
[1747202486087,0.2889542,103980.0,103970.0,2.47046799]
[1747202490679,0.2889542,103980.0,103970.0,2.32365165]
[1747202491587,0.2889542,103980.0,103970.0,2.24586816]
[1747202491789,0.2889542,103980.0,103970.0,2.32365165]
[1747202496391,0.2889542,103980.0,103970.0,2.24586816]
[1747202496584,0.2889542,103980.0,103970.0,2.47046799]
[1747202500689,0.4949942,103980.0,103970.0,0.2746118]
[1747202500895,0.4949942,103980.0,103970.0,0.4353845]
[1747202501087,0.6569942,103980.0,103970.0,0.4353845]
[1747202501287,0.6569942,103980.0,103970.0,2.01316799]
[1747202501489,0.6569942,103980.0,103970.0,2.04386799]
[1747202502096,0.6569942,103980.0,103970.0,2.23958154]
[1747202502297,0.6569942,103980.0,103970.0,2.16179805]
[1747202502487,0.6569942,103980.0,103970.0,2.23958154]
[1747202505597,0.6569942,103980.0,103970.0,0.73958154]
[1747202506902,0.6569942,103980.0,103970.0,0.66179805]
[1747202507105,0.6569942,103980.0,103970.0,0.73958154]
[1747202508310,0.6569942,103980.0,103970.0,0.66179805]
[1747202508488,0.73477769,103980.0,103970.0,0.63109805]
[1747202508899,0.73477769,103980.0,103970.0,0.53490259]
[1747202511503,0.73477769,103980.0,103970.0,0.1923727]
[1747202517004,0.6569942,103980.0,103970.0,0.1923727]
[1747202517202,0.6569942,103980.0,103970.0,0.2230727]
[1747202522703,0.6569942,103980.0,103970.0,0.0307]
[1747202524409,0.73477769,103980.0,103970.0,0.0307]
[1747202524807,0.73477769,103980.0,103970.0,0.2230727]
[1747202525208,0.57277769,103980.0,103970.0,0.2230727]
[1747202526811,0.4949942,103980.0,103970.0,0.2230727]
[1747202527606,0.57277769,103980.0,103970.0,0.2230727]
[1747202531109,0.4949942,103980.0,103970.0,0.2230727]
[1747202531314,0.57277769,103980.0,103970.0,0.2230727]
[1747202532610,0.57277769,103980.0,103970.0,0.0307]
[1747202533209,0.4949942,103980.0,103970.0,0.0307]
[1747202539420,0.57277769,103980.0,103970.0,0.0307]
[1747202540321,0.4949942,103980.0,103970.0,0.2230727]
[1747202540516,0.4949942,103980.0,103970.0,0.30085619]
[1747202540716,0.4949942,103980.0,103970.0,0.33395619]
[1747202541824,0.4949142,103980.0,103970.0,0.79093315]
[1747202542123,0.3993942,103980.0,103970.0,0.82243315]
[1747202542625,0.3993942,103980.0,103970.0,2.32243315]
[1747202544927,0.4307942,103980.0,103970.0,2.32243315]
[1747202546230,0.4307942,103980.0,103970.0,2.46924949]
[1747202547229,0.4307942,103980.0,103970.0,2.63124949]
[1747202547430,0.3993942,103980.0,103970.0,2.63124949]
[1747202548930,0.3993942,103980.0,103970.0,2.6368702]
[1747202549932,0.3993942,103980.0,103970.0,2.63124949]
[1747202550737,0.4297942,103980.0,103970.0,2.63124949]
[1747202551631,0.4297942,103980.0,103970.0,2.82696304]
[1747202552643,0.2237542,103980.0,103970.0,2.82696304]
[1747202552939,0.4296742,103980.0,103970.0,2.82696304]
[1747202553129,0.23732,103980.0,103970.0,2.82696304]
[1747202554136,0.20692,103980.0,103970.0,2.82696304]
[1747202554545,0.001,103980.0,103970.0,1.40474653]
[1747202554841,0.001,103980.0,103970.0,1.32696304]
[1747202555029,0.001,103980.0,103970.0,2.83258375]
[1747202555233,0.30202,103990.0,103980.0,0.1923542]
[1747202555442,0.30202,103990.0,103980.0,0.72873769]
[1747202555941,0.0961,103990.0,103980.0,0.8249054]
[1747202556131,0.0961,103990.0,103980.0,1.06468889]
[1747202556337,0.86694356,104000.0,103990.0,0.1923358]
[1747202556540,0.95924356,104000.0,103990.0,0.33591929]
[1747202556842,0.75332356,104000.0,103990.0,0.33591929]
[1747202557042,0.75332356,104000.0,103990.0,0.43207775]
[1747202557345,0.75332356,104000.0,103990.0,0.35429426]
[1747202557543,0.75332356,104000.0,103990.0,0.43207775]
[1747202557744,0.34643966,104000.0,103990.0,0.79287775]
[1747202557944,0.30135946,104000.0,103990.0,0.79287775]
[1747202559544,0.10902996,104000.0,103990.0,0.79287775]
[1747202559747,0.30134726,104000.0,103990.0,0.79287775]
[1747202560147,0.30134726,104000.0,103990.0,0.95487775]
[1747202560446,0.30134726,104000.0,103990.0,2.45487775]
[1747202560948,0.29834726,104000.0,103990.0,2.45487775]
[1747202561141,0.30134726,104000.0,103990.0,2.29287775]
[1747202561549,0.29834726,104000.0,103990.0,2.29287775]
[1747202561749,0.29934726,104000.0,103990.0,2.29287775]
[1747202562354,0.29934726,104000.0,103990.0,2.18209426]
[1747202563043,0.29734726,104000.0,103990.0,2.18209426]
[1747202564844,0.29734726,104000.0,103990.0,1.82129426]
[1747202565053,0.29734726,104000.0,103990.0,2.18209426]
[1747202565349,0.29734726,104000.0,103990.0,2.21429426]
[1747202567048,0.29734726,104000.0,103990.0,2.29207775]
[1747202567246,0.29734726,104000.0,103990.0,2.25987775]
[1747202567643,0.29734726,104000.0,103990.0,1.89907775]
[1747202567854,0.29734726,104000.0,103990.0,2.25987775]
[1747202569958,0.10502996,104000.0,103990.0,1.89907775]
[1747202570146,0.10502996,104000.0,103990.0,2.25987775]
[1747202571752,0.10502996,104000.0,103990.0,1.89907775]
[1747202571955,0.10502996,104000.0,103990.0,2.25987775]
[1747202574950,0.10502996,104000.0,103990.0,2.29317775]
[1747202579255,0.10502996,104000.0,103990.0,2.32427775]
[1747202584159,0.10502996,104000.0,103990.0,1.96347775]
[1747202584364,0.10502996,104000.0,103990.0,2.32427775]
[1747202587161,0.10502996,104000.0,103990.0,2.24649426]
[1747202587565,0.10502996,104000.0,103990.0,2.47109409]
[1747202588764,0.10502996,104000.0,103990.0,2.11029409]
[1747202588963,0.10502996,104000.0,103990.0,2.47109409]
[1747202593062,0.003,104000.0,103990.0,2.47109409]
[1747202594269,0.003,104000.0,103990.0,2.63509409]
[1747202594861,0.0338,104000.0,103990.0,2.63509409]
[1747202595061,0.0646,104000.0,103990.0,2.63609409]
[1747202595268,0.0949,104000.0,103990.0,2.63609409]
[1747202595571,0.0959,104000.0,103990.0,2.6839913]
[1747202595769,0.0959,104000.0,103990.0,2.6819913]
[1747202596161,0.0959,104000.0,103990.0,2.69672405]
[1747202596563,0.0959,104000.0,103990.0,2.6819913]
[1747202597455,0.0959,104000.0,103990.0,2.60420781]
[1747202597660,0.0959,104000.0,103990.0,2.6819913]
[1747202601177,0.0959,104000.0,103990.0,2.82871362]
[1747202601576,0.0959,104000.0,103990.0,2.84283593]
[1747202602077,0.003,104000.0,103990.0,2.92061942]
[1747202602273,0.003,104000.0,103990.0,2.84283593]
[1747202603071,0.0337,104000.0,103990.0,2.84283593]
[1747202605476,0.0643,104000.0,103990.0,2.84283593]
[1747202605672,0.0958,104000.0,103990.0,2.84283593]
[1747202606170,0.0958,104000.0,103990.0,2.68083593]
[1747202607179,0.0958,104000.0,103990.0,2.45402238]
[1747202607773,0.0958,104000.0,103990.0,2.48422238]
[1747202609785,0.0958,104000.0,103990.0,2.12342238]
[1747202609971,0.0958,104000.0,103990.0,2.48422238]
[1747202613983,0.0958,104000.0,103990.0,2.45402238]
[1747202616475,0.0958,104000.0,103990.0,2.64973593]
[1747202618688,0.0958,104000.0,103990.0,2.68273593]
[1747202619477,0.01119641,104010.0,104000.0,0.1923173]
[1747202619478,0.00144319,104010.0,104000.0,0.1923173]
[1747202619688,0.00144319,104010.0,104000.0,0.80438428]
[1747202619883,0.03354319,104010.0,104000.0,0.80438428]
[1747202620190,0.0321,104010.0,104000.0,1.0625335]
[1747202620685,0.0646,104010.0,104000.0,1.0625335]
[1747202621081,0.0646,104010.0,104000.0,0.9005335]
[1747202622889,0.0646,104010.0,104000.0,1.24296937]
[1747202623091,0.0646,104010.0,104000.0,1.40496937]
[1747202623897,0.0646,104010.0,104000.0,2.90496937]
[1747202625288,0.24709104,104020.0,104010.0,0.1922988]
[1747202625484,0.00344245,104040.0,104030.0,0.1922618]
[1747202625684,0.41484245,104040.0,104030.0,0.30164529]
[1747202625883,0.41484245,104040.0,104030.0,0.42819451]
[1747202626393,0.57684245,104040.0,104030.0,0.42819451]
[1747202626590,0.35768575,104040.0,104030.0,0.35041102]
[1747202626790,0.87776924,104040.0,104030.0,0.31681102]
[1747202626991,0.87776924,104040.0,104030.0,0.31481102]
[1747202627682,0.87976924,104040.0,104030.0,0.31481102]
[1747202628289,0.88176924,104040.0,104030.0,0.31481102]
[1747202628496,0.91316924,104040.0,104030.0,0.31481102]
[1747202628797,0.94316924,104040.0,104030.0,0.31481102]
[1747202629292,0.95300508,104040.0,104030.0,0.31481102]
[1747202629795,0.95300508,104040.0,104030.0,0.31881102]
[1747202630584,0.1922803,104020.0,104010.0,0.79595612]
[1747202630785,0.68142379,104020.0,104010.0,0.46685612]
[1747202630989,0.77462379,104020.0,104010.0,0.56297761]
[1747202631193,0.93662379,104020.0,104010.0,2.06297761]
[1747202631693,0.93662379,104020.0,104010.0,0.56297761]
[1747202631894,0.93662379,104020.0,104010.0,0.41825529]
[1747202632392,1.01440728,104020.0,104010.0,0.2740599]
[1747202632591,1.37520728,104020.0,104010.0,0.2423599]
[1747202632897,1.37520728,104020.0,104010.0,0.2453599]
[1747202633092,1.29742379,104020.0,104010.0,0.2453599]
[1747202633394,1.37520728,104020.0,104010.0,0.2453599]
[1747202633898,1.29742379,104020.0,104010.0,0.2453599]
[1747202634498,1.29742379,104020.0,104010.0,0.2423599]
[1747202634888,1.37520728,104020.0,104010.0,0.2403599]
[1747202635084,1.37620728,104020.0,104010.0,0.2403599]
[1747202635696,1.29842379,104020.0,104010.0,0.2403599]
[1747202635897,1.29842379,104020.0,104010.0,0.2718599]
[1747202637693,0.1922988,104010.0,104000.0,1.87118037]
[1747202637898,0.69518229,104010.0,104000.0,0.22485957]
[1747202638288,0.85718229,104010.0,104000.0,0.22485957]
[1747202639699,0.85718229,104010.0,104000.0,0.22585957]
[1747202640292,0.85818229,104010.0,104000.0,0.22485957]
[1747202641195,0.49738229,104010.0,104000.0,0.22485957]
[1747202641393,0.85818229,104010.0,104000.0,0.22485957]
[1747202641699,0.85918229,104010.0,104000.0,0.22485957]
[1747202644300,0.88978229,104010.0,104000.0,0.22485957]
[1747202650394,0.88978229,104010.0,104000.0,0.25765957]
[1747202650901,0.8119988,104010.0,104000.0,0.25765957]
[1747202651113,0.6197,104010.0,104000.0,0.33544306]
[1747202651315,0.6197,104010.0,104000.0,0.25765957]
[1747202651514,0.69748349,104010.0,104000.0,0.25765957]
[1747202652115,0.53548349,104010.0,104000.0,0.25765957]
[1747202652414,0.72778229,104010.0,104000.0,0.25765957]
[1747202657114,0.88978229,104010.0,104000.0,0.25765957]
[1747202658121,0.72778229,104010.0,104000.0,0.25765957]
[1747202659724,0.53548349,104010.0,104000.0,0.25765957]
[1747202660022,0.72778229,104010.0,104000.0,0.25765957]
[1747202660425,0.4577,104010.0,104000.0,0.25765957]
[1747202662127,0.6499988,104010.0,104000.0,0.25765957]
[1747202662428,0.8556788,104010.0,104000.0,0.25765957]
[1747202662612,0.93346229,104010.0,104000.0,0.03254227]
[1747202662816,0.1923358,103990.0,103980.0,0.14672232]
[1747202663119,0.1923358,103990.0,103980.0,0.07216442]
[1747202663120,2.37318278,103990.0,103980.0,0.07216442]
[1747202663317,2.45296729,103990.0,103980.0,0.07216442]
[1747202663626,2.45296729,103990.0,103980.0,0.26451862]
[1747202664125,2.45296729,103990.0,103980.0,0.26751862]
[1747202664529,2.467043,103990.0,103980.0,0.26951862]
[1747202665128,2.45296729,103990.0,103980.0,0.26951862]
[1747202666227,2.45296729,103990.0,103980.0,0.2274542]
[1747202666620,2.35679929,103990.0,103980.0,0.2274542]
[1747202669122,2.38969929,103990.0,103980.0,0.2274542]
[1747202669625,2.40378512,103990.0,103980.0,0.2274542]
[1747202676434,0.1923542,103980.0,103970.0,0.2230727]
[1747202676636,0.72573769,103980.0,103970.0,0.2542727]
[1747202677737,0.72573769,103980.0,103970.0,0.2582727]
[1747202678644,0.73546866,103980.0,103970.0,0.2582727]
[1747202678938,0.81367097,103980.0,103970.0,0.34005619]
[1747202679138,1.03752517,103980.0,103970.0,0.37245619]
[1747202679436,1.03752517,103980.0,103970.0,0.2946727]
[1747202679735,0.87577097,103980.0,103970.0,0.2946727]
[1747202680151,1.06812517,103980.0,103970.0,0.2946727]
[1747202680734,0.87577097,103980.0,103970.0,0.2946727]
[1747202681339,0.87777097,103980.0,103970.0,0.2906727]
[1747202681936,0.87777097,103980.0,103970.0,0.2866727]
[1747202687443,0.51697097,103980.0,103970.0,0.2866727]
[1747202687644,0.87777097,103980.0,103970.0,0.2866727]
[1747202688946,1.07012517,103980.0,103970.0,0.2866727]
[1747202689443,1.14790866,103980.0,103970.0,0.2542727]
[1747202690946,1.07012517,103980.0,103970.0,0.2542727]
[1747202691146,1.14790866,103980.0,103970.0,0.2542727]
[1747202692533,1.07012517,103980.0,103970.0,0.2542727]
[1747202692738,1.14790866,103980.0,103970.0,0.2542727]
[1747202692940,0.95555446,103980.0,103970.0,0.2542727]
[1747202693138,1.14790866,103980.0,103970.0,0.2542727]
[1747202693348,1.07012517,103980.0,103970.0,0.2542727]
[1747202694249,0.87777097,103980.0,103970.0,0.2542727]
[1747202694443,1.07012517,103980.0,103970.0,0.2542727]
[1747202694849,0.87777097,103980.0,103970.0,0.2542727]
[1747202695446,1.07012517,103980.0,103970.0,0.2542727]
[1747202695642,0.87777097,103980.0,103970.0,0.2542727]
[1747202695845,0.45539097,103980.0,103970.0,0.78903315]
[1747202696050,0.21849097,103980.0,103970.0,0.89901664]
[1747202696241,0.21849097,103980.0,103970.0,0.98323315]
[1747202696843,0.21849097,103980.0,103970.0,2.48323315]
[1747202697052,0.21649097,103980.0,103970.0,2.48323315]
[1747202697460,0.20676,103980.0,103970.0,2.48323315]
[1747202698147,0.20576,103980.0,103970.0,2.48423315]
[1747202698659,0.20576,103980.0,103970.0,2.6799467]
[1747202698857,1.30078,103990.0,103980.0,0.1923542]
[1747202699052,1.30078,103990.0,103980.0,0.77212118]
[1747202699351,0.20974,103990.0,103980.0,0.77212118]
[1747202699548,0.20974,103990.0,103980.0,0.86828889]
[1747202700154,0.20974,103990.0,103980.0,1.03028889]
[1747202700355,0.221179,103990.0,103980.0,0.9525054]
[1747202700550,0.221179,103990.0,103980.0,1.03028889]
[1747202700949,0.221179,103990.0,103980.0,0.9525054]
[1747202701150,0.21174,103990.0,103980.0,0.9525054]
[1747202701345,0.21274,103990.0,103980.0,0.9525054]
[1747202701855,0.21274,103990.0,103980.0,0.87472191]
[1747202702055,0.21274,103990.0,103980.0,0.9525054]
[1747202702249,0.21174,103990.0,103980.0,1.03028889]
[1747202702451,0.21174,103990.0,103980.0,1.03128889]
[1747202703359,0.21174,103990.0,103980.0,0.9535054]
[1747202703657,0.1836777,103990.0,103980.0,1.03128889]
[1747202704252,0.1836777,103990.0,103980.0,1.06138889]
[1747202704958,0.1836777,103990.0,103980.0,0.9836054]
[1747202706250,0.2062377,103990.0,103980.0,0.9836054]
[1747202708160,0.1820412,103990.0,103980.0,1.06138889]
[1747202709760,0.1820412,103990.0,103980.0,0.70058889]
[1747202709961,0.1820412,103990.0,103980.0,1.42218889]
[1747202714564,0.1820412,103990.0,103980.0,0.70058889]
[1747202714776,0.1820412,103990.0,103980.0,1.42218889]
[1747202716064,0.2152412,103990.0,103980.0,1.42218889]
[1747202716863,0.2152412,103990.0,103980.0,1.3444054]
[1747202717062,0.32492469,103990.0,103980.0,1.23652191]
[1747202717362,0.54836049,103990.0,103980.0,1.23652191]
[1747202717553,0.75548049,103990.0,103980.0,0.3875542]
[1747202718164,0.75548049,103990.0,103980.0,0.2255542]
[1747202719368,0.79618451,103990.0,103980.0,0.2255542]
[1747202719569,0.79918451,103990.0,103980.0,0.2245542]
[1747202720268,0.60684871,103990.0,103980.0,0.2245542]
[1747202721770,0.79918451,103990.0,103980.0,0.2245542]
[1747202721966,0.60684871,103990.0,103980.0,0.2245542]
[1747202722160,0.4883612,103990.0,103980.0,0.2245542]
[1747202722360,0.60684871,103990.0,103980.0,0.2245542]
[1747202722562,0.79918451,103990.0,103980.0,0.2245542]
[1747202724662,0.79918451,103990.0,103980.0,0.1923542]
[1747202725060,0.1923542,103980.0,103970.0,0.6807435]
[1747202725273,0.40594171,103980.0,103970.0,0.6493435]
[1747202725476,0.21358751,103980.0,103970.0,0.6493435]
[1747202725675,0.40594171,103980.0,103970.0,0.6493435]
[1747202725871,0.40594171,103980.0,103970.0,0.3216435]
[1747202726076,0.42850171,103980.0,103970.0,0.3216435]
[1747202726376,0.39814751,103980.0,103970.0,0.3226435]
[1747202727877,0.39814751,103980.0,103970.0,0.3216435]
[1747202728175,0.39914751,103980.0,103970.0,0.3216435]
[1747202728775,0.40114751,103980.0,103970.0,0.3216435]
[1747202729281,0.23914751,103980.0,103970.0,0.3216435]
[1747202729979,0.23914751,103980.0,103970.0,1.8216435]
[1747202733785,0.12066,103980.0,103970.0,1.8216435]
[1747202734990,0.12066,103980.0,103970.0,1.8543435]
[1747202739288,0.19842017,103980.0,103970.0,1.8543435]
[1747202747795,0.61318017,103980.0,103970.0,1.8543435]
[1747202753698,0.80553437,103980.0,103970.0,1.8543435]
[1747202753890,0.61318017,103980.0,103970.0,1.8543435]
[1747202756400,0.51808017,103980.0,103970.0,1.7885435]
[1747202768028,0.44032,103980.0,103970.0,1.7885435]
[1747202768231,0.51808017,103980.0,103970.0,1.7885435]
[1747202771329,0.71043437,103980.0,103970.0,1.7885435]
[1747202772023,0.71043437,103980.0,103970.0,0.2885435]
[1747202772224,0.1923727,103970.0,103960.0,0.43954755]
[1747202772529,0.27013287,103970.0,103960.0,0.43954755]
[1747202772719,0.27013287,103970.0,103960.0,0.63193885]
[1747202773226,0.45470287,103970.0,103960.0,0.63193885]
[1747202773729,0.45470287,103970.0,103960.0,0.44054755]
[1747202773929,0.45470287,103970.0,103960.0,0.63293885]
[1747202774117,0.29270287,103970.0,103960.0,0.63393885]
[1747202774828,0.29270287,103970.0,103960.0,0.63293885]
[1747202775029,0.29370287,103970.0,103960.0,0.63293885]
[1747202775426,0.2169427,103970.0,103960.0,0.1923913]
[1747202775616,0.29470287,103970.0,103960.0,0.1923913]
[1747202775822,0.2169427,103970.0,103960.0,0.1923913]
[1747202776020,0.29470287,103970.0,103960.0,0.1923913]
[1747202783726,0.39060287,103970.0,103960.0,0.2248913]
[1747202784627,0.12047,103970.0,103960.0,0.2549913]
[1747202784828,0.26467,103970.0,103960.0,0.86749785]
[1747202785127,0.02457,103970.0,103960.0,1.05949785]
[1747202785537,0.02457,103970.0,103960.0,1.06511856]
[1747202785728,0.02457,103970.0,103960.0,2.56511856]
[1747202786830,0.02357,103970.0,103960.0,2.56511856]
[1747202787029,0.02257,103970.0,103960.0,2.56611856]
[1747202787232,0.02257,103970.0,103960.0,2.56911856]
[1747202787531,0.02257,103970.0,103960.0,2.56349785]
[1747202788035,0.02257,103970.0,103960.0,2.71018138]
[1747202788737,0.02257,103970.0,103960.0,2.70918138]
[1747202788940,0.02257,103970.0,103960.0,2.71118138]
[1747202790538,0.02257,103970.0,103960.0,2.71680209]
[1747202790740,0.02257,103970.0,103960.0,1.21680209]
[1747202791140,0.02257,103970.0,103960.0,2.71680209]
[1747202791441,0.02257,103970.0,103960.0,2.91251564]
[1747202791636,0.02257,103970.0,103960.0,2.90689493]
[1747202791839,0.02257,103970.0,103960.0,3.26769493]
[1747202796940,0.05367,103970.0,103960.0,3.26769493]
[1747202798441,0.05367,103970.0,103960.0,3.26569493]
[1747202798637,0.05367,103970.0,103960.0,3.26669493]
[1747202799036,0.05367,103970.0,103960.0,3.26469493]
[1747202799551,0.05367,103970.0,103960.0,3.06898138]
[1747202800341,0.08397,103970.0,103960.0,3.06898138]
[1747202801052,0.08397,103970.0,103960.0,2.95446798]
[1747202807148,0.11477,103970.0,103960.0,2.95446798]
[1747202808151,0.11477,103970.0,103960.0,2.79894764]
[1747202808343,0.11477,103970.0,103960.0,2.87670781]
[1747202808548,0.11477,103970.0,103960.0,3.04242136]
[1747202812559,0.11477,103970.0,103960.0,2.84670781]
[1747202814950,0.11477,103970.0,103960.0,2.89573783]
[1747202815759,0.11477,103970.0,103960.0,2.612698]
[1747202817856,0.11477,103970.0,103960.0,2.251898]
[1747202818162,0.11477,103970.0,103960.0,2.612698]
[1747202819863,0.32201,103970.0,103960.0,2.612698]
[1747202820163,0.32201,103970.0,103960.0,2.645498]
[1747202820955,0.05367,103970.0,103960.0,2.65111871]
[1747202821156,0.0636,103980.0,103970.0,0.1923727]
[1747202821361,0.27084,103980.0,103970.0,0.72643287]
[1747202821860,0.27084,103980.0,103970.0,0.82260983]
[1747202822361,0.27084,103980.0,103970.0,0.98560983]
[1747202822860,0.27084,103980.0,103970.0,0.98660983]
[1747202823656,0.27084,103980.0,103970.0,1.10456321]
[1747202823961,0.27084,103980.0,103970.0,1.18232338]
[1747202824153,0.4631942,103980.0,103970.0,1.18232338]
[1747202824354,0.30094,103980.0,103970.0,1.18232338]
[1747202826256,0.30094,103980.0,103970.0,0.82152338]
[1747202826658,0.30094,103980.0,103970.0,1.18232338]
[1747202827053,0.30094,103980.0,103970.0,1.32910226]
[1747202828156,0.4932942,103980.0,103970.0,1.25134209]
[1747202828352,0.93185437,103980.0,103970.0,0.53889243]
[1747202828754,1.00961454,103980.0,103970.0,0.50649243]
[1747202829163,1.17161454,103980.0,103970.0,0.34449243]
[1747202830065,1.17161454,103980.0,103970.0,0.53686513]
[1747202830263,1.17161454,103980.0,103970.0,0.1943727]
[1747202830469,1.09385437,103980.0,103970.0,0.1943727]
[1747202830858,1.09385437,103980.0,103970.0,0.2243727]
[1747202831164,1.09485437,103980.0,103970.0,0.2243727]
[1747202831466,1.09485437,103980.0,103970.0,0.2233727]
[1747202831764,1.09685437,103980.0,103970.0,0.2233727]
[1747202833264,0.73605437,103980.0,103970.0,0.2233727]
[1747202833665,1.09685437,103980.0,103970.0,0.2233727]
[1747202835261,1.09685437,103980.0,103970.0,0.1923727]
[1747202835461,0.1923727,103970.0,103960.0,0.90854718]
[1747202835663,0.4919127,103970.0,103960.0,0.90854718]
[1747202835862,0.4919127,103970.0,103960.0,1.00472414]
[1747202837876,0.4919127,103970.0,103960.0,1.00572414]
[1747202838565,0.56967287,103970.0,103960.0,0.92592664]
[1747202838957,0.56967287,103970.0,103960.0,0.14777888]
[1747202839157,0.73167287,103970.0,103960.0,0.14777888]
[1747202839464,1.09247287,103970.0,103960.0,0.14777888]
[1747202839870,1.09447287,103970.0,103960.0,0.16200934]
[1747202840369,1.17223304,103970.0,103960.0,0.14777888]
[1747202840562,1.09747287,103970.0,103960.0,0.14777888]
[1747202840763,1.09847287,103970.0,103960.0,0.14777888]
[1747202840963,2.18979287,103970.0,103960.0,0.001]
[1747202841471,2.19379287,103970.0,103960.0,0.01521517]
[1747202841973,2.19379287,103970.0,103960.0,0.20760647]
[1747202842170,2.19379287,103970.0,103960.0,0.01521517]
[1747202848872,2.19379287,103970.0,103960.0,0.04691517]
[1747202851673,2.19379287,103970.0,103960.0,0.01521517]
[1747202852678,2.19379287,103970.0,103960.0,0.04611517]
[1747202855279,2.03179287,103970.0,103960.0,0.04611517]
[1747202863979,1.7166927,103970.0,103960.0,0.04611517]
[1747202864187,2.20985287,103970.0,103960.0,0.10741517]
[1747202864777,2.24065287,103970.0,103960.0,0.0932]
[1747202866396,2.24065287,103970.0,103960.0,0.0629]
[1747202866884,2.24065287,103970.0,103960.0,0.0319]
[1747202867085,2.24065287,103970.0,103960.0,0.04611669]
[1747202872481,2.24065287,103970.0,103960.0,0.07831669]
[1747202873086,1.87985287,103970.0,103960.0,0.07831669]
[1747202873281,2.24065287,103970.0,103960.0,0.07831669]
[1747202881790,2.24065287,103970.0,103960.0,0.04611669]
[1747202881987,0.1923913,103960.0,103950.0,0.03352391]
[1747202882290,1.17126301,103960.0,103930.0,0.24479614]
[1747202882492,0.70874864,103940.0,103930.0,0.21923585]
[1747202882686,1.12398864,103940.0,103930.0,0.21923585]
[1747202882886,1.22018864,103940.0,103930.0,0.21923585]
[1747202883292,1.22973321,103940.0,103930.0,0.21923585]
[1747202883492,1.22973321,103940.0,103930.0,0.25083585]
[1747202884089,1.22973321,103940.0,103930.0,0.44428265]
[1747202884287,1.15197304,103940.0,103930.0,0.44428265]
[1747202884485,1.15197304,103940.0,103930.0,0.28423585]
[1747202885185,1.15197304,103940.0,103930.0,0.31673585]
[1747202885399,1.07421287,103940.0,103930.0,0.31673585]
[1747202885690,1.15197304,103940.0,103930.0,0.31673585]
[1747202885895,1.22985321,103940.0,103930.0,0.31673585]
[1747202886194,1.15209304,103940.0,103930.0,0.31673585]
[1747202887094,1.07433287,103940.0,103930.0,0.50918265]
[1747202887394,1.07433287,103940.0,103930.0,0.0975]
[1747202887798,1.15209304,103940.0,103930.0,0.0975]
[1747202892797,1.15209304,103940.0,103930.0,0.0651]
[1747202893795,1.22985321,103940.0,103930.0,0.002]
[1747202893992,1.22985321,103940.0,103930.0,0.0166448]
[1747202896094,1.23285321,103940.0,103930.0,0.0146448]
[1747202896598,1.23085321,103940.0,103930.0,0.0146448]